bitfinex-derivatives/quotes_ETHF0:USTF0_20250602
["timestamp","ask_amount","ask_price","bid_price","bid_amount"]
[1748856145818,0.80352,2487.9,2487.8,0.00603355]
[1748856146115,23.86132,2487.9,2487.8,0.00603355]
[1748856146516,30.4238978,2487.9,2487.8,0.00603355]
[1748856146712,30.62717692,2487.9,2487.8,0.00603355]
[1748856147409,30.42389912,2487.9,2487.8,0.00603355]
[1748856147613,29.06259912,2487.9,2487.8,0.00603355]
[1748856147823,26.31372088,2487.9,2487.8,0.00603355]
[1748856148118,26.3137104,2487.9,2487.8,0.00603355]
[1748856148318,26.31369898,2487.9,2487.8,0.00603355]
[1748856148515,26.11042,2487.9,2487.8,0.00603355]
[1748856148718,26.31370859,2487.9,2487.8,0.00603355]
[1748856149014,26.11042,2487.9,2487.8,0.00603355]
[1748856149313,26.31371295,2487.9,2487.8,0.00603355]
[1748856149510,26.11042,2487.9,2487.8,0.00603355]
[1748856149710,31.11042,2487.9,2487.8,0.00603355]
[1748856149911,31.31372291,2487.9,2487.8,0.00603355]
[1748856150318,31.3137196,2487.9,2487.8,0.00603355]
[1748856150518,31.31371678,2487.9,2487.8,0.00603355]
[1748856150708,31.11042,2487.9,2487.8,0.00603355]
[1748856150913,31.31371857,2487.9,2487.8,0.00603355]
[1748856151223,31.31373388,2487.9,2487.8,0.00603355]
[1748856151421,26.11042,2487.9,2487.8,0.00603355]
[1748856151722,26.31373831,2487.9,2487.8,0.00603355]
[1748856151920,26.31373485,2487.9,2487.8,0.00603355]
[1748856152322,26.3137273,2487.9,2487.8,0.00603355]
[1748856152524,31.31375206,2487.9,2487.8,3.55e-06]
[1748856152823,31.31369808,2487.9,2487.8,3.55e-06]
[1748856153822,31.31368553,2487.9,2487.8,3.55e-06]
[1748856154013,31.31368723,2487.9,2487.8,3.55e-06]
[1748856154211,31.11042,2487.9,2487.8,3.55e-06]
[1748856154409,31.31368584,2487.9,2487.8,3.55e-06]
[1748856154616,31.31367729,2487.9,2487.8,3.55e-06]
[1748856154816,31.31367265,2487.9,2487.8,3.55e-06]
[1748856155214,6.26242,2487.9,2487.8,3.55e-06]
[1748856155519,6.46567003,2487.9,2487.8,3.55e-06]
[1748856155724,24.74512,2487.9,2487.8,3.55e-06]
[1748856155912,24.74412,2487.9,2487.8,3.55e-06]
[1748856156116,5.10637632,2487.9,2487.8,3.55e-06]
[1748856156320,24.94737632,2487.9,2487.8,3.55e-06]
[1748856156819,24.94736034,2487.9,2487.8,3.55e-06]
[1748856157122,24.94736092,2487.9,2487.8,3.55e-06]
[1748856157419,24.74412,2487.9,2487.8,3.55e-06]
[1748856157725,24.94735472,2487.9,2487.8,3.55e-06]
[1748856158316,24.74412,2487.9,2487.8,3.55e-06]
[1748856158619,4.21456456,2487.9,2487.8,0.80355355]
[1748856158826,23.0458,2487.9,2487.8,0.80355355]
[1748856159119,23.84931,2487.9,2487.8,0.80355355]
[1748856159424,23.84931,2487.9,2487.8,2.13275355]
[1748856160017,3.2078,2487.9,2487.8,2.13275355]
[1748856161024,3.2078,2487.9,2487.8,3.32134502]
[1748856162226,3.2078,2487.9,2487.8,8.32134502]
[1748856163022,3.2078,2488.2,2488.0,2.00869]
[1748856163217,3.2078,2488.2,2488.1,1.3329]
[1748856163419,4.01123,2488.2,2488.1,2.52146339]
[1748856163620,4.01123,2488.2,2488.1,1.3329]
[1748856164424,4.01123,2488.2,2488.1,2.2381]
[1748856164620,4.01123,2488.2,2488.1,3.04155]
[1748856165129,4.01123,2488.2,2488.1,2.2381]
[1748856167630,4.21472853,2488.2,2488.1,2.2381]
[1748856167833,4.01123,2488.2,2488.1,2.2381]
[1748856168825,4.21473484,2488.2,2488.1,2.2381]
[1748856169030,0.80343,2488.2,2488.1,2.2381]
[1748856169223,4.01123,2488.2,2488.1,2.2381]
[1748856170935,4.21476368,2488.2,2488.1,2.2381]
[1748856171941,4.41832443,2488.2,2488.1,2.2381]
[1748856172135,4.21476368,2488.2,2488.1,2.2381]
[1748856172838,4.21476368,2488.2,2488.1,3.04155]
[1748856173243,4.21476368,2488.2,2488.1,2.2381]
[1748856174434,3.41133368,2488.2,2488.1,4.23086086]
[1748856174733,3.41133368,2488.2,2488.1,5.4201689]
[1748856174930,3.41133368,2488.2,2488.1,4.23085804]
[1748856175239,0.20353368,2488.2,2488.1,4.23085804]
[1748856175537,0.20353368,2488.2,2488.1,5.42017517]
[1748856175941,0.20353368,2488.2,2488.1,4.23086713]
[1748856176138,0.20353368,2488.2,2488.1,3.04155]
[1748856176846,0.20353368,2488.2,2488.1,4.23062613]
[1748856177337,1.00695368,2488.2,2488.1,4.23062613]
[1748856177538,0.20353368,2488.2,2488.1,4.23062613]
[1748856178745,1.00695368,2488.2,2488.1,4.23062613]
[1748856179744,1.00695368,2488.2,2488.1,4.2392393]
[1748856180238,0.20353368,2488.2,2488.1,4.2392393]
[1748856180741,1.00695368,2488.2,2488.1,4.2392393]
[1748856181245,0.20353368,2488.2,2488.1,4.2392393]
[1748856182349,0.20353368,2488.2,2488.1,4.23925827]
[1748856185337,0.20353368,2488.2,2488.1,5.44058733]
[1748856185548,0.20353368,2488.2,2488.1,4.23925827]
[1748856186648,0.20353368,2488.2,2488.1,4.24074959]
[1748856187745,0.20353368,2488.2,2488.1,5.84188765]
[1748856190544,0.20353368,2488.2,2488.1,5.84322879]
[1748856193149,0.20353368,2488.2,2488.1,3.04155]
[1748856193349,0.20353368,2488.2,2488.1,5.84724994]
[1748856193953,0.20353368,2488.2,2488.1,5.84722942]
[1748856194660,0.20353368,2488.2,2488.1,4.24230854]
[1748856195058,3.2078,2488.4,2488.3,0.80339]
[1748856195247,3.2078,2488.4,2488.3,2.00414854]
[1748856195452,3.2078,2488.4,2488.3,3.6089247]
[1748856195655,3.2078,2488.4,2488.3,5.8674247]
[1748856195854,19.78,2488.6,2488.5,0.80332]
[1748856196160,19.78,2488.6,2488.5,2.00672543]
[1748856196355,19.78,2488.6,2488.5,3.20748397]
[1748856197259,19.78,2488.6,2488.5,2.00407854]
[1748856197760,20.58329,2488.6,2488.5,3.35577854]
[1748856198259,3.2078,2488.7,2488.6,0.80329]
[1748856198463,22.9828,2488.7,2488.6,0.80329]
[1748856200058,23.78606,2488.7,2488.6,0.80329]
[1748856200360,0.80329,2488.6,2488.5,2.155]
[1748856200559,0.80329,2488.6,2488.5,0.8033]
[1748856200754,0.80335,2488.5,2488.4,0.80333]
[1748856200954,20.57331,2488.6,2488.5,0.80329]
[1748856201155,21.89071,2488.6,2488.5,0.80329]
[1748856202763,0.80342,2488.3,2488.2,0.80339]
[1748856202967,4.01122,2488.3,2488.2,0.80339]
[1748856203563,0.80345,2488.2,2488.1,0.80342]
[1748856203757,2.10275,2488.2,2488.1,0.80342]
[1748856204168,0.80352,2488.0,2487.8,3.55e-06]
[1748856204363,3.2078,2488.0,2487.9,0.80349]
[1748856204664,4.01128,2488.0,2487.9,0.80349]
[1748856205965,3.2078,2488.0,2487.9,0.80349]
[1748856206462,3.2078,2488.0,2487.9,2.10409]
[1748856207863,19.76,2488.2,2488.1,0.80345]
[1748856209066,22.9668,2488.4,2488.3,0.80339]
[1748856209457,22.9668,2488.4,2488.0,2.00869]
[1748856209458,22.9668,2488.4,2488.2,0.80339]
[1748856209658,0.80342,2488.3,2488.2,0.80339]
[1748856210867,2.15762,2488.3,2488.2,0.80339]
[1748856211062,0.80342,2488.3,2488.2,0.80339]
[1748856211366,23.76818,2488.4,2488.3,0.80339]
[1748856211966,0.80344,2488.2,2488.1,0.80342]
[1748856212167,2.15761,2488.3,2488.2,0.80342]
[1748856212665,0.80345,2488.2,2488.1,0.80343]
[1748856212870,0.9286,2488.2,2488.1,0.80343]
[1748856213562,1.73202,2488.2,2488.1,0.80343]
[1748856214167,0.80349,2488.1,2488.0,0.80346]
[1748856214372,5.33889,2488.1,2488.0,0.80346]
[1748856214970,0.80352,2488.0,2487.9,0.80349]
[1748856216772,3.04592,2488.0,2487.9,0.80349]
[1748856216959,1.67322,2488.0,2487.9,0.80349]
[1748856218973,1.67318,2488.0,2487.9,0.80349]
[1748856220371,2.94748,2488.0,2487.9,0.80349]
[1748856220576,0.80352,2487.9,2487.8,3.55e-06]
[1748856221078,2.07782,2487.9,2487.8,3.55e-06]
[1748856221470,2.07782,2487.9,2487.8,0.80355355]
[1748856222075,0.80352,2487.9,2487.8,0.80355355]
[1748856228781,0.8697,2488.0,2487.9,0.80352]
[1748856228981,3.2078,2488.1,2488.0,0.80348]
[1748856229482,3.2078,2488.1,2488.0,1.70878]
[1748856234682,3.2078,2488.1,2488.0,2.99888]
[1748856237582,3.2078,2488.5,2488.2,0.80338]
[1748856237782,0.80342,2488.3,2488.2,0.80338]
[1748856238081,0.80339,2488.4,2488.3,0.80337]
[1748856239486,0.80343,2488.3,2488.2,0.80339]
[1748856240682,0.80343,2488.3,2488.0,2.99888]
[1748856240683,0.80345,2488.2,2488.1,0.80343]
[1748856240888,6.52621,2488.5,2488.0,2.1954]
[1748856240889,0.80341,2488.3,2488.2,0.80338]
[1748856241390,0.80338,2488.4,2488.3,0.80335]
[1748856241592,20.50938,2488.4,2488.3,0.80335]
[1748856243196,3.2078,2488.5,2488.4,0.80335]
[1748856243398,22.9098,2488.5,2488.4,0.80335]
[1748856243596,23.71312,2488.5,2488.4,0.80335]
[1748856243997,0.80339,2488.4,2488.3,0.80337]
[1748856244189,0.80339,2488.3,2488.2,1.3056]
[1748856244398,0.80345,2488.2,2488.1,0.80342]
[1748856244597,2.00839,2488.4,2487.9,1.2644]
[1748856244802,0.80348,2488.0,2487.9,0.80348]
[1748856245398,2.99318,2488.0,2487.9,0.80348]
[1748856246302,0.80352,2487.9,2487.8,3.55e-06]
[1748856246595,2.18522,2487.9,2487.8,3.55e-06]
[1748856247102,7.18522,2487.9,2487.8,3.55e-06]
[1748856247795,7.49074311,2487.9,2487.8,3.55e-06]
[1748856250200,31.58922,2487.9,2487.8,3.55e-06]
[1748856250994,1.20538259,2488.0,2487.8,3.55e-06]
[1748856250995,0.903,2488.0,2487.8,3.55e-06]
[1748856251202,3.2078,2488.1,2488.0,0.80348]
[1748856251397,3.2078,2488.4,2488.2,0.80339]
[1748856251597,4.01115,2488.4,2488.3,2.14219]
[1748856251895,4.01115,2488.4,2488.3,1.3388]
[1748856252196,4.01115,2488.4,2488.3,2.14219]
[1748856252398,3.2078,2488.4,2488.3,2.14219]
[1748856252798,4.01115,2488.4,2488.3,2.14219]
[1748856252999,3.2078,2488.4,2488.3,2.14219]
[1748856253598,4.01115,2488.4,2488.3,2.14219]
[1748856253801,4.01115,2488.4,2488.3,1.3388]
[1748856254003,4.01115,2488.4,2488.3,2.14219]
[1748856254203,3.2078,2488.4,2488.3,2.14219]
[1748856254901,4.01115,2488.4,2488.3,2.14219]
[1748856255306,0.8034,2488.3,2488.2,0.80339]
[1748856255505,4.01118,2488.4,2488.3,0.80338]
[1748856255903,0.80347,2488.1,2488.0,0.80346]
[1748856256108,4.01127,2488.1,2488.0,0.80346]
[1748856256406,4.01126,2488.1,2488.0,0.80348]
[1748856256613,3.2078,2488.1,2488.0,0.80348]
[1748856262211,5.76978,2488.7,2488.6,0.80329]
[1748856262407,4.9665,2488.7,2488.6,0.80329]
[1748856262611,0.00603355,2488.8,2488.7,0.80326]
[1748856264009,3.2078,2489.0,2488.9,0.80319]
[1748856265607,3.2078,2489.0,2488.9,2.14809]
[1748856269512,3.2078,2489.0,2488.6,0.8573]
[1748856269713,0.80321,2488.9,2488.8,0.80321]
[1748856270020,4.01098,2489.0,2488.9,0.8032]
[1748856270220,3.2078,2489.0,2488.6,0.8573]
[1748856270518,3.2078,2488.7,2488.6,0.8573]
[1748856270718,3.2078,2488.7,2488.6,1.66058]
[1748856272025,4.01106,2488.7,2488.6,0.80328]
[1748856272225,3.2078,2488.7,2488.5,1.28]
[1748856272420,3.2078,2488.7,2488.6,0.80329]
[1748856273120,3.2078,2488.7,2488.6,1.68679]
[1748856274427,4.01106,2488.7,2488.6,1.68679]
[1748856274720,0.80329,2488.6,2488.5,2.08329]
[1748856274923,4.01108,2488.7,2488.6,0.80329]
[1748856275121,3.2078,2488.7,2488.6,0.80329]
[1748856275421,4.01106,2488.7,2488.6,1.67819]
[1748856275627,0.80329,2488.6,2488.5,2.08331]
[1748856275926,4.01108,2488.7,2488.6,0.80329]
[1748856276730,0.80329,2488.6,2488.5,2.0833]
[1748856277027,0.80329,2488.6,2488.5,2.08333]
[1748856278330,4.88739,2488.7,2488.6,0.80329]
[1748856280524,0.80329,2488.6,2488.5,0.80331]
[1748856280727,1.2768,2488.6,2488.2,1.3821]
[1748856280930,3.2078,2488.3,2488.2,2.18552]
[1748856281231,22.8448,2488.6,2488.5,0.80333]
[1748856281735,3.2078,2488.6,2488.5,3.03153]
[1748856283733,4.01109,2488.6,2488.5,3.03153]
[1748856284634,4.01109,2488.6,2488.5,2.2282]
[1748856284934,0.80333,2488.5,2488.4,0.80334]
[1748856291742,3.2078,2488.6,2488.5,0.80332]
[1748856293637,3.21382645,2489.2,2488.6,2.00824]
[1748856293838,4.01693645,2489.2,2489.1,0.80313]
[1748856294031,3.21382645,2489.2,2488.7,2.2164]
[1748856294335,0.80319,2488.9,2488.8,1.4032]
[1748856294527,3.2078,2488.9,2488.7,0.80325]
[1748856294729,0.80327,2488.7,2488.6,0.80326]
[1748856296532,3.2078,2488.9,2488.3,3.0962]
[1748856296736,4.01111,2488.6,2488.5,0.8033]
[1748856299645,3.2078,2488.6,2488.5,0.8033]
[1748856300746,4.01109,2488.6,2488.5,0.8033]
[1748856301939,0.80335,2488.5,2488.4,0.80334]
[1748856302141,5.38842,2488.6,2488.5,0.80333]
[1748856302539,0.80336,2488.5,2488.4,0.80334]
[1748856302743,0.80341,2488.3,2488.2,0.80339]
[1748856302951,3.2078,2488.3,2488.2,2.14839]
[1748856303352,4.01119,2488.3,2488.2,2.14839]
[1748856303653,4.01119,2488.3,2488.2,2.14842]
[1748856303855,0.80342,2488.2,2488.1,1.67155]
[1748856304055,4.01121,2488.3,2488.2,0.80342]
[1748856304857,0.80342,2488.2,2488.1,1.67153]
[1748856306455,4.01121,2488.3,2488.2,0.80342]
[1748856306655,4.01121,2488.3,2488.2,2.08622]
[1748856307255,4.01121,2488.3,2488.2,1.2828]
[1748856307554,3.2078,2488.3,2487.9,0.80351]
[1748856307855,2.00842,2488.4,2487.8,1.33310355]
[1748856307856,0.80352,2487.9,2487.8,1.33310355]
[1748856308049,0.80352,2487.9,2487.8,3.55e-06]
[1748856308248,1.60312,2487.9,2487.8,3.55e-06]
[1748856308453,22.59522,2487.9,2487.8,3.55e-06]
[1748856309156,27.59522,2487.9,2487.8,3.55e-06]
[1748856309769,32.24722,2487.9,2487.8,3.55e-06]
[1748856310251,2.00937,2487.2,2486.7,0.80389]
[1748856310448,0.80386,2486.9,2486.8,0.80386]
[1748856310648,0.80391,2486.7,2486.6,2.08793]
[1748856310853,3.2078,2486.7,2486.5,1.68534]
[1748856311159,0.80394,2486.6,2486.5,2.96934]
[1748856311350,0.80394,2486.6,2486.5,2.1654]
[1748856311550,0.80397,2486.5,2486.3,0.00603355]
[1748856311953,3.2078,2486.4,2486.3,1.29003355]
[1748856312148,3.2078,2486.4,2486.3,0.81007355]
[1748856312866,4.0118,2486.4,2486.3,0.00603355]
[1748856313067,3.2078,2486.4,2486.3,0.81007355]
[1748856314049,9.0118,2486.4,2486.3,0.00603355]
[1748856314356,9.0118,2486.4,2485.7,2.0862]
[1748856314357,2.0101,2486.3,2485.7,2.0862]
[1748856314554,3.2078,2485.8,2485.7,2.08621]
[1748856315056,4.012,2485.8,2485.7,1.282]
[1748856315252,4.012,2485.8,2485.7,2.08623]
[1748856315253,3.2078,2485.8,2485.7,2.08623]
[1748856315760,4.0181,2486.4,2486.3,0.80404]
[1748856316061,3.2078,2486.4,2486.3,0.80404]
[1748856317554,22.7988,2486.7,2486.6,0.80394]
[1748856317860,3.2078,2486.7,2486.6,0.80394]
[1748856318257,0.00603,2486.8,2486.7,0.80391]
[1748856318451,1e-05,2486.8,2486.7,3.89131]
[1748856318651,1e-05,2486.8,2486.7,12.09911]
[1748856319755,3.2078,2487.7,2487.6,0.80361]
[1748856321862,0.00603355,2487.9,2487.8,0.80355]
[1748856322464,3.55e-06,2487.9,2487.8,4.01135]
[1748856322964,3.55e-06,2487.9,2487.8,2.12435]
[1748856323551,3.55e-06,2487.9,2487.4,1.67123355]
[1748856323756,3.2078,2487.7,2487.6,0.8036]
[1748856323960,3.2078,2487.7,2487.4,1.67123355]
[1748856324165,2.20183,2487.6,2487.4,0.00603355]
[1748856324463,20.38865,2487.5,2487.4,0.00603355]
[1748856324662,22.62785,2487.5,2487.4,0.00603355]
[1748856327063,3.2078,2487.7,2487.5,0.80365]
[1748856327264,0.80361,2487.6,2487.5,2.07285]
[1748856327961,0.80361,2487.6,2487.5,1.2692]
[1748856328166,0.80361,2487.6,2487.5,2.07285]
[1748856328961,0.80361,2487.6,2487.5,1.2692]
[1748856329273,0.80361,2487.6,2487.5,2.07285]
[1748856329560,0.80361,2487.6,2487.5,1.2692]
[1748856329765,0.80361,2487.6,2487.5,2.07285]
[1748856329965,0.80361,2487.6,2487.5,1.2692]
[1748856331167,0.80361,2487.6,2487.5,2.07285]
[1748856331463,0.80361,2487.6,2487.5,1.2692]
[1748856331665,0.80365,2487.5,2487.4,0.00603355]
[1748856332267,22.7818,2487.7,2487.2,0.80372]
[1748856332268,0.80372,2487.3,2487.2,0.80372]
[1748856332467,5.3875,2487.4,2486.9,0.70857613]
[1748856332671,5.3875,2487.4,2486.9,2.71815613]
[1748856333054,11.00314824,2487.3,2486.9,2.71815613]
[1748856333262,10.19942824,2487.3,2487.2,0.80374]
[1748856333467,11.00313824,2487.3,2487.2,0.80374]
[1748856334060,10.19942824,2487.3,2487.2,0.80374]
[1748856334460,11.00313824,2487.3,2487.2,0.80374]
[1748856334861,10.19942824,2487.3,2487.2,0.80374]
[1748856335762,0.80371,2487.3,2487.2,0.80374]
[1748856336772,11.01678297,2487.3,2487.2,0.80374]
[1748856336966,10.21306297,2487.3,2487.2,0.80374]
[1748856337654,4.0738,2487.4,2487.3,0.80371]
[1748856337855,23.6398,2487.4,2487.3,0.80371]
[1748856338064,24.44248,2487.4,2487.3,0.80371]
[1748856338262,24.44248,2487.4,2487.1,1.42008428]
[1748856338467,24.44248,2487.4,2487.1,0.80378]
[1748856338468,10.21957969,2487.2,2487.1,0.80378]
[1748856341066,10.21957969,2487.2,2487.1,3.34102545]
[1748856341677,20.36471,2487.3,2487.2,0.80374]
[1748856341965,19.561,2487.3,2487.2,0.80374]
[1748856342165,19.561,2487.3,2487.2,2.14278964]
[1748856342971,20.36471,2487.3,2487.2,2.14278964]
[1748856343166,19.561,2487.3,2487.2,2.14278964]
[1748856343574,20.9,2487.3,2487.2,2.14278964]
[1748856343764,20.9,2487.3,2487.2,0.80374]
[1748856343966,20.9,2487.3,2487.2,2.14637618]
[1748856344368,26.70371,2487.3,2487.2,1.34263618]
[1748856344569,0.80381,2487.0,2486.9,1.60189971]
[1748856344774,0.80391,2486.7,2486.6,1.20004685]
[1748856344973,4.01171,2486.7,2486.6,1.20004685]
[1748856345273,3.2078,2486.7,2486.6,2.00398685]
[1748856345474,22.7628,2486.7,2486.6,0.80394]
[1748856345866,24.0851,2486.7,2486.6,0.80394]
[1748856346067,3.2078,2486.7,2486.6,0.80394]
[1748856346664,3.2078,2486.7,2486.6,1.61144]
[1748856347672,3.2078,2486.7,2486.6,4.0157289]
[1748856347868,23.56563,2487.0,2486.9,0.80384]
[1748856348073,23.56561,2487.0,2486.9,0.80384]
[1748856348375,23.56561,2487.0,2486.9,2.00590716]
[1748856348766,3.2078,2487.0,2486.9,2.00590716]
[1748856349074,22.7608,2487.0,2486.9,2.00590716]
[1748856349277,3.2078,2487.0,2486.9,0.80384]
[1748856349480,5.31,2487.5,2487.4,0.80368]
[1748856349776,22.7598,2487.5,2487.4,2.00551324]
[1748856350263,23.56345,2487.5,2487.4,2.00551324]
[1748856350668,23.56345,2487.5,2487.4,1.20183324]
[1748856351263,4.01145,2487.5,2487.4,2.00551324]
[1748856351468,20.35365,2487.5,2487.4,2.00551324]
[1748856352378,20.35365,2487.5,2487.4,1.20183324]
[1748856352572,23.56145,2487.5,2487.4,0.80368]
[1748856354979,3.2078,2487.5,2487.4,0.80368]
[1748856355278,4.01145,2487.5,2487.4,0.80368]
[1748856355673,0.80368,2487.4,2487.3,3.20735649]
[1748856355872,0.80368,2487.4,2487.3,0.80369]
[1748856356073,2.18128,2487.4,2487.3,0.80369]
[1748856356278,2.95878,2487.4,2487.3,0.80369]
[1748856356578,2.95878,2487.4,2487.3,2.12181012]
[1748856358176,2.1551,2487.4,2487.3,2.12181012]
[1748856358379,3.2078,2487.5,2487.4,0.80368]
[1748856358575,3.2078,2487.5,2487.4,2.12180012]
[1748856358884,4.01145,2487.5,2487.4,2.12180012]
[1748856359183,3.2078,2487.5,2487.4,2.12180012]
[1748856359881,3.2078,2487.5,2487.4,3.43473765]
[1748856360077,4.01145,2487.5,2487.4,1.31293753]
[1748856360378,5.37335,2487.5,2487.4,1.31293753]
[1748856361473,5.56825165,2487.5,2487.4,1.31293753]
[1748856361978,0.80371,2487.3,2487.2,1.20319394]
[1748856362185,0.80374,2487.2,2487.1,1.20319394]
[1748856362481,0.80378,2487.1,2487.0,1.20319394]
[1748856362882,2.18288,2487.1,2487.0,1.20319394]
[1748856363086,6.57398818,2487.1,2486.8,1.20319394]
[1748856363279,4.01164,2486.9,2486.8,1.20319394]
[1748856363579,23.54264,2486.9,2486.8,1.20319394]
[1748856363782,0.8039,2486.7,2486.6,1.20319394]
[1748856363991,0.80394,2486.6,2486.5,1.20319394]
[1748856364181,0.80394,2486.6,2486.5,2.40640148]
[1748856364380,0.80394,2486.6,2486.5,3.21036148]
[1748856364683,0.7775,2486.7,2486.6,0.80393]
[1748856365079,1.58141,2486.7,2486.6,0.80393]
[1748856365282,0.80391,2486.7,2486.6,0.80393]
[1748856365475,2.11321,2486.7,2486.6,0.80393]
[1748856366283,20.3028,2486.8,2486.5,1.20320754]
[1748856366284,0.7728,2486.8,2486.7,0.8039]
[1748856366587,0.7728,2486.8,2486.5,3.21312754]
[1748856366588,22.7358,2486.9,2486.8,0.80387]
[1748856366793,22.7358,2486.9,2486.8,2.00593698]
[1748856367083,22.7358,2486.9,2486.8,0.80387]
[1748856368284,24.88834,2486.9,2486.8,2.00590783]
[1748856368885,24.88834,2486.9,2486.8,1.20203783]
[1748856369091,0.8039,2486.7,2486.6,1.20203783]
[1748856369394,0.8039,2486.7,2486.6,2.00596783]
[1748856369885,0.8039,2486.7,2486.6,2.00587957]
[1748856371485,0.80393,2486.6,2486.5,1.20181532]
[1748856371688,1.63633,2486.6,2486.5,0.80397]
[1748856371894,0.80397,2486.5,2486.4,2.01181887]
[1748856372190,2.07717,2486.5,2486.4,2.01181887]
[1748856373994,2.07717,2486.5,2486.4,3.29641051]
[1748856374483,0.8324,2486.6,2486.5,0.80397]
[1748856374794,0.7884,2486.7,2486.6,0.80393]
[1748856374987,4.01166,2486.9,2486.8,0.80387]
[1748856375186,23.53166,2486.9,2486.8,2.08846164]
[1748856375391,23.53166,2486.9,2486.8,0.80387]
[1748856375594,23.53166,2486.9,2486.8,1.28431365]
[1748856378597,0.80397,2486.5,2486.4,2.41150575]
[1748856378894,0.80397,2486.5,2486.4,2.09432806]
[1748856379297,0.80396,2486.6,2486.5,0.80393]
[1748856379596,20.31895,2486.6,2486.5,3.28927358]
[1748856380101,20.31895,2486.6,2486.5,4.60157358]
[1748856380491,20.31895,2486.6,2486.5,3.79765358]
[1748856381094,20.31895,2486.6,2486.5,4.60162358]
[1748856381801,20.31895,2486.6,2486.5,2.48535358]
[1748856383295,20.31895,2486.6,2486.5,3.28932358]
[1748856383502,20.31895,2486.6,2486.5,3.28858052]
[1748856383690,20.31895,2486.6,2486.5,2.48461052]
[1748856384598,20.31895,2486.6,2486.5,1.28315563]
[1748856387400,0.80397,2486.5,2486.4,1.60750575]
[1748856387600,0.80397,2486.5,2486.4,1.28899171]
[1748856389502,0.80397,2486.5,2486.4,3.6926582]
[1748856389692,2.07597,2486.5,2486.4,3.6926582]
[1748856389997,21.57697,2486.5,2486.4,3.6926582]
[1748856390599,22.36297,2486.5,2486.4,1.28899171]
[1748856390901,22.5582991,2486.5,2486.4,2.49346691]
[1748856391205,22.36297,2486.5,2486.4,1.28899171]
[1748856391496,22.36297,2486.5,2486.4,3.7779844]
[1748856391688,22.5584053,2486.5,2486.4,3.7779844]
[1748856391997,22.55840646,2486.5,2486.4,2.49502624]
[1748856392400,22.5583559,2486.5,2486.4,2.49502624]
[1748856392588,22.36297,2486.5,2486.4,2.49502624]
[1748856392793,22.55841462,2486.5,2486.4,2.49502624]
[1748856392993,22.55841409,2486.5,2486.4,2.49502624]
[1748856393193,22.55841423,2486.5,2486.4,2.49502624]
[1748856394000,22.55847134,2486.5,2486.4,2.49502624]
[1748856394201,25.76627134,2486.5,2486.4,2.49502624]
[1748856394799,25.76626194,2486.5,2486.4,2.49502624]
[1748856394995,25.76626146,2486.5,2486.4,2.49502624]
[1748856395302,25.57077,2486.5,2486.4,2.49502624]
[1748856395500,25.57077,2486.5,2486.4,1.27498091]
[1748856395804,25.57077,2486.5,2486.4,0.00603355]
[1748856396809,25.57077,2486.5,2486.4,1.27484659]
[1748856397197,4.01177,2486.5,2486.4,2.47919728]
[1748856397396,23.50377,2486.5,2486.4,2.47919728]
[1748856397703,23.50377,2486.5,2486.4,3.40764659]
[1748856399298,23.69934971,2486.5,2486.4,3.40764659]
[1748856399504,23.50377,2486.5,2486.4,3.40764659]
[1748856399904,4.01177,2486.5,2486.4,3.4060021]
[1748856400899,4.20736087,2486.5,2486.4,3.4060021]
[1748856401099,4.01177,2486.5,2486.4,3.4060021]
[1748856401602,4.20735485,2486.5,2486.4,3.4060021]
[1748856401803,4.40294056,2486.5,2486.4,3.4060021]
[1748856402001,4.40293188,2486.5,2486.4,3.4060021]
[1748856402197,4.40293197,2486.5,2486.4,3.4060021]
[1748856402505,4.40292212,2486.5,2486.4,3.4060021]
[1748856402697,4.20735485,2486.5,2486.4,3.4060021]
[1748856402898,4.40292273,2486.5,2486.4,3.4060021]
[1748856403101,4.40292024,2486.5,2486.4,3.4060021]
[1748856403405,4.20735485,2486.5,2486.4,3.4060021]
[1748856403604,4.40222407,2486.5,2486.4,3.4060021]
[1748856403808,4.40222407,2486.5,2486.4,1.2732021]
[1748856404001,5.77611278,2486.5,2486.4,0.00603355]
[1748856404201,4.97214278,2486.5,2486.4,2.07571998]
[1748856404409,0.19558485,2486.5,2486.4,2.07571998]
[1748856404606,0.99955485,2486.5,2486.4,5.07122136]
[1748856404904,0.99955485,2486.5,2486.4,5.87522136]
[1748856405807,0.19558485,2486.5,2486.4,5.87522136]
[1748856406009,0.99955485,2486.5,2486.4,5.87522136]
[1748856406309,0.19558485,2486.5,2486.4,5.87522136]
[1748856406508,0.19558485,2486.5,2486.4,3.46651998]
[1748856407604,0.99955485,2486.5,2486.4,3.46651998]
[1748856408104,0.19558485,2486.5,2486.4,8.46651998]
[1748856408300,0.19558485,2486.5,2486.4,11.67431998]
[1748856408508,0.19558485,2486.5,2486.4,14.88592182]
[1748856411325,0.19558485,2486.5,2486.4,11.67431998]
[1748856412110,0.19558485,2486.5,2486.4,11.67245852]
[1748856412309,3.37037,2487.2,2486.8,2.00965]
[1748856412310,1.361,2487.2,2486.8,2.00965]
[1748856412512,20.2214,2487.3,2487.2,0.80374]
[1748856412716,20.2214,2487.3,2487.2,2.06756497]
[1748856413014,0.7514,2487.3,2487.2,2.06756497]
[1748856413215,6.06909,2487.4,2487.3,0.80371]
[1748856413410,6.06909,2487.4,2487.3,3.27122025]
[1748856413611,3.2078,2487.4,2487.3,3.27122025]
[1748856413807,3.2078,2487.4,2487.3,3.67244868]
[1748856414314,3.2078,2487.4,2487.3,2.06753497]
[1748856414614,3.2078,2487.4,2487.3,3.66978169]
[1748856414811,3.2078,2487.4,2487.3,2.06753497]
[1748856415312,3.2078,2487.4,2487.3,4.24143497]
[1748856416014,3.2078,2487.4,2487.3,4.26867767]
[1748856416517,3.2078,2487.4,2487.3,5.87005623]
[1748856418119,0.80359,2487.7,2487.6,0.80361]
[1748856418314,0.80359,2487.7,2487.6,2.09467767]
[1748856419016,2.16769,2487.7,2487.6,2.09467767]
[1748856419915,2.16769,2487.7,2487.6,0.80361]
[1748856420215,2.16769,2487.7,2487.6,2.09250582]
[1748856421009,2.16769,2487.7,2487.6,1.28889582]